[Event "Polgar Challenge 2021"]
[Site "Online"]
[Date "2021.04.04"]
[Round "19.6"]
[White "Khademalsharieh, Sarasadat"]
[Black "Salimova, Nurgyul"]
[Result "1-0"]
[ECO "D27"]
[WhiteElo "2494"]
[BlackElo "2397"]
[Annotator "ChessBase"]
[PlyCount "95"]
[EventDate "2021.04.08"]
[EventType "tourn"]
[EventCountry "NET"]
[SourceTitle "playchess.com"]
[Source "ChessBase"]
[SourceQuality "1"]
[TimeControl "600+5"]

1. d4 {[%emt 0:00:00]} Nf6 {[%emt 0:00:00]} 2. c4 {[%emt 0:00:00]} e6 {[%emt 0:00:00]} 3. Nf3 {[%emt 0:00:00]} d5 {[%emt 0:00:02]} 4. Nc3 {[%emt 0:00:02]} dxc4 {[%emt 0:00:02]} 5. e3 {[%emt 0:00:10]} a6 {[%emt 0:00:15]} 6. a4 {[%emt 0:00:15]} c5 {[%emt 0:00:06]} 7. Bxc4 {[%emt 0:00:02]} Nc6 {[%emt 0:00:10]} 8. O-O {[%emt 0:00:03]} cxd4 {[%emt 0:00:03]} 9. exd4 {[%emt 0:00:02]} Be7 {[%emt 0:00:03]} 10. Bg5 {[%emt 0:00:16]} O-O {[%emt 0:00:05]} 11. Re1 {[%emt 0:00:02]} Nb4 {[%emt 0:00:24]} 12. Qe2 {[%emt 0:00:08]} Bd7 {[%emt 0:00:20]} 13. Ne5 {[%emt 0:00:07]} Rc8 {[%emt 0:00:35]} 14. Rad1 {[%emt 0:00:23]} Be8 {[%emt 0:02:51]} 15. Bb3 {[%emt 0:03:34]} Qc7 {[%emt 0:00:52]} 16. Qf3 {[%emt 0:00:38]} Nc6 {[%emt 0:01:33]} 17. Qh3 {[%emt 0:01:52]} Qb6 {[%emt 0:01:48]} 18. Bxe6 {[%emt 0:01:30]} fxe6 {[%emt 0:00:49]} 19. Qxe6+ {[%emt 0:00:03]} Kh8 {[%emt 0:00:11]} 20. Qxc8 {[%emt 0:00:22]} Qxb2 {[%emt 0:00:27]} 21. Bxf6 {[%emt 0:00:34]} gxf6 {[%emt 0:00:25]} 22. Nxc6 {[%emt 0:00:30]} Bxc6 {[%emt 0:00:02]} 23. Qh3 {[%emt 0:00:01]} Bb4 {[%emt 0:00:06]} 24. Re3 {[%emt 0:00:15]} Qc2 {[%emt 0:00:24]} 25. Rf1 {[%emt 0:00:09]} Bxc3 {[%emt 0:00:25]} 26. Rxc3 {[%emt 0:00:02]} Qe4 {[%emt 0:00:00]} 27. Rg3 {[%emt 0:00:20]} Rg8 {[%emt 0:00:08]} 28. Rxg8+ {[%emt 0:00:22]} Kxg8 {[%emt 0:00:00]} 29. Qg3+ {[%emt 0:00:02]} Kf7 {[%emt 0:00:07]} 30. a5 {[%emt 0:00:05]} Qd5 {[%emt 0:00:09]} 31. h4 {[%emt 0:00:07]} Qxa5 {[%emt 0:00:02]} 32. Qg4 {[%emt 0:00:04]} Qd5 {[%emt 0:00:01]} 33. h5 {[%emt 0:00:03]} Qe4 {[%emt 0:00:11]} 34. Qxe4 {[%emt 0:00:02]} Bxe4 {[%emt 0:00:00]} 35. f3 {[%emt 0:00:01]} Bc6 {[%emt 0:00:03]} 36. Ra1 {[%emt 0:00:05]} Ke6 {[%emt 0:00:01]} 37. Kf2 {[%emt 0:00:02]} Kf5 {[%emt 0:00:03]} 38. g4+ {[%emt 0:00:04]} Kf4 {[%emt 0:00:08]} 39. Ra5 {[%emt 0:00:03]} Bd7 {[%emt 0:00:02]} 40. Rd5 {[%emt 0:00:06]} Be6 {[%emt 0:00:02]} 41. Rd6 {[%emt 0:00:03]} Bc8 {[%emt 0:00:01]} 42. Rxf6+ {[%emt 0:00:01]} Kg5 {[%emt 0:00:01]} 43. Rf8 {[%emt 0:00:01]} Be6 {[%emt 0:00:01]} 44. Kg3 {[%emt 0:00:04]} Bc4 {[%emt 0:00:10]} 45. f4+ {[%emt 0:00:02]} Kh6 {[%emt 0:00:02]} 46. Rc8 {[%emt 0:00:03]} Be6 {[%emt 0:00:06]} 47. Rc7 {[%emt 0:00:03]} Bd5 {[%emt 0:00:07]} 48. Kh4 {[%emt 0:00:04]} 1-0

[Event "Polgar Challenge 2021"]
[Site "Online"]
[Date "2021.04.04"]
[Round "19.8"]
[White "Murzin, Volodar"]
[Black "Yip, Carissa"]
[Result "1-0"]
[ECO "C95"]
[WhiteElo "2478"]
[BlackElo "2430"]
[Annotator "ChessBase"]
[PlyCount "99"]
[EventDate "2021.04.08"]
[EventType "tourn"]
[EventCountry "NET"]
[SourceTitle "playchess.com"]
[Source "ChessBase"]
[SourceQuality "1"]
[TimeControl "600+5"]

1. e4 {[%emt 0:00:00]} e5 {[%emt 0:00:00]} 2. Nf3 {[%emt 0:00:00]} Nc6 {[%emt 0:00:00]} 3. Bb5 {[%emt 0:00:00]} a6 {[%emt 0:00:00]} 4. Ba4 {[%emt 0:00:01]} Nf6 {[%emt 0:00:00]} 5. O-O {[%emt 0:00:03]} Be7 {[%emt 0:00:01]} 6. Re1 {[%emt 0:00:01]} b5 {[%emt 0:00:03]} 7. Bb3 {[%emt 0:00:02]} d6 {[%emt 0:00:02]} 8. c3 {[%emt 0:00:05]} O-O {[%emt 0:00:02]} 9. h3 {[%emt 0:00:02]} Nb8 {[%emt 0:00:02]} 10. d4 {[%emt 0:00:03]} Nbd7 {[%emt 0:00:01]} 11. c4 {[%emt 0:00:08]} c6 {[%emt 0:00:06]} 12. Nc3 {[%emt 0:00:03]} b4 {[%emt 0:00:08]} 13. Na4 {[%emt 0:00:04]} c5 {[%emt 0:01:07]} 14. d5 {[%emt 0:00:04]} Ne8 {[%emt 0:00:07]} 15. Bc2 {[%emt 0:00:03]} a5 {[%emt 0:00:05]} 16. b3 {[%emt 0:00:02]} g6 {[%emt 0:00:08]} 17. a3 {[%emt 0:00:23]} Ng7 {[%emt 0:00:08]} 18. Nb2 {[%emt 0:00:04]} Nb6 {[%emt 0:00:14]} 19. Bd2 {[%emt 0:00:08]} f5 {[%emt 0:00:03]} 20. Qe2 {[%emt 0:00:06]} f4 {[%emt 0:00:08]} 21. axb4 {[%emt 0:00:07]} axb4 {[%emt 0:00:03]} 22. Rxa8 {[%emt 0:00:05]} Nxa8 {[%emt 0:00:01]} 23. Ra1 {[%emt 0:00:00]} Nb6 {[%emt 0:00:14]} 24. Nd3 {[%emt 0:00:11]} g5 {[%emt 0:00:28]} 25. Ra7 {[%emt 0:02:47]} Bf6 {[%emt 0:00:15]} 26. Nh2 {[%emt 0:00:15]} h5 {[%emt 0:00:08]} 27. Bd1 {[%emt 0:00:13]} Bd7 {[%emt 0:00:24]} 28. Qe1 {[%emt 0:00:25]} Qb8 {[%emt 0:00:21]} 29. Ra2 {[%emt 0:00:13]} Rd8 {[%emt 0:00:35]} 30. Be2 {[%emt 0:00:08]} Be8 {[%emt 0:00:28]} 31. Qa1 {[%emt 0:00:32]} Bg6 {[%emt 0:00:01]} 32. f3 {[%emt 0:00:27]} Rd7 {[%emt 0:00:02]} 33. Ra6 {[%emt 0:00:34]} Bd8 {[%emt 0:00:01]} 34. Be1 {[%emt 0:00:12]} Ne8 {[%emt 0:00:09]} 35. Bf2 {[%emt 0:00:02]} Nf6 {[%emt 0:00:58]} 36. Nxe5 {[%emt 0:02:07]} dxe5 {[%emt 0:00:05]} 37. Bxc5 {[%emt 0:00:02]} g4 {[%emt 0:01:33]} 38. Kh1 {[%emt 0:00:22]} Qb7 {[%emt 0:00:40]} 39. Bg1 {[%emt 0:00:42]} Bxe4 {[%emt 0:01:24]} 40. fxe4 {[%emt 0:00:04]} Nxe4 {[%emt 0:00:01]} 41. Nxg4 {[%emt 0:01:20]} Ng3+ {[%emt 0:00:17]} 42. Kh2 {[%emt 0:00:02]} Nxe2 {[%emt 0:00:21]} 43. Nxe5 {[%emt 0:00:14]} Rg7 {[%emt 0:00:11]} 44. Bxb6 {[%emt 0:00:24]} f3 {[%emt 0:00:33]} 45. gxf3 {[%emt 0:00:26]} Nf4 {[%emt 0:01:25]} 46. Bxd8 {[%emt 0:00:16]} Qc8 {[%emt 0:00:16]} 47. Ng4 {[%emt 0:00:03]} hxg4 {[%emt 0:00:02]} 48. fxg4 {[%emt 0:00:09]} Qc5 {[%emt 0:00:25]} 49. Bb6 {[%emt 0:00:07]} Qd6 {[%emt 0:00:19]} 50. Bd4 {[%emt 0:00:07]} 1-0

[Event "Polgar Challenge 2021"]
[Site "Online"]
[Date "2021.04.04"]
[Round "19.9"]
[White "Mammadzada, Gunay"]
[Black "Lei, Tingjie"]
[Result "0-1"]
[ECO "C67"]
[WhiteElo "2443"]
[BlackElo "2505"]
[Annotator "RC"]
[PlyCount "130"]
[EventDate "2021.04.08"]
[EventType "tourn"]
[EventCountry "NET"]
[SourceTitle "playchess.com"]
[Source "ChessBase"]
[SourceQuality "1"]
[TimeControl "600+5"]

1. e4 {[%emt 0:00:00]} e5 {[%emt 0:00:00]} 2. Nf3 {[%emt 0:00:00]} Nc6 {[%emt 0:00:00]} 3. Bb5 {[%emt 0:00:00]} Nf6 {[%emt 0:00:00]} 4. O-O {[%emt 0:00:01]} Nxe4 {[%emt 0:00:01]} 5. Re1 {[%emt 0:00:01]} Nd6 {[%emt 0:00:01]} 6. Nxe5 {[%emt 0:00:02]} Be7 {[%emt 0:00:02]} 7. Bf1 {[%emt 0:00:02]} Nxe5 {[%emt 0:00:01]} 8. Rxe5 {[%emt 0:00:02]} O-O {[%emt 0:00:02]} 9. d4 {[%emt 0:00:01]} Bf6 {[%emt 0:00:01]} 10. Re1 {[%emt 0:00:01]} Re8 {[%emt 0:00:04]} 11. c3 {[%emt 0:00:02]} Rxe1 {[%emt 0:00:10]} 12. Qxe1 {[%emt 0:00:02]} Ne8 {[%emt 0:01:00]} 13. d5 {[%emt 0:00:03]} d6 {[%emt 0:00:03]} 14. Nd2 {[%emt 0:00:02]} c6 {[%emt 0:00:04]} 15. Ne4 {[%emt 0:01:05]} Be7 {[%emt 0:00:58]} 16. Bf4 {[%emt 0:00:41]} cxd5 {[%emt 0:00:13]} 17. Ng3 {[%emt 0:00:05]} Be6 {[%emt 0:00:12]} 18. Bd3 {[%emt 0:00:09]} Bg5 {[%emt 0:00:15]} 19. Qe3 {[%emt 0:00:16]} Bxf4 {[%emt 0:00:03]} 20. Qxf4 {[%emt 0:00:01]} Qf6 {[%emt 0:00:09]} 21. Qb4 {[%emt 0:00:06]} Qe7 {[%emt 0:00:19]} 22. Re1 {[%emt 0:00:06]} Qd7 {[%emt 0:00:54]} 23. Ne2 {[%emt 0:00:18]} a5 {[%emt 0:00:26]} 24. Qb6 {[%emt 0:00:10]} Qc7 {[%emt 0:00:22]} 25. Qe3 {[%emt 0:00:07]} Nf6 {[%emt 0:00:14]} 26. Nd4 {[%emt 0:00:24]} Re8 {[%emt 0:00:12]} 27. Qg3 {[%emt 0:01:31]} Bd7 {[%emt 0:02:15]} 28. Rxe8+ {[%emt 0:01:40]} Nxe8 {[%emt 0:00:02]} 29. Qe3 {[%emt 0:00:01]} Qd8 {[%emt 0:00:04]} 30. f3 {[%emt 0:01:15]} Nf6 {[%emt 0:00:19]} 31. Be2 {[%emt 0:00:33]} Kf8 {[%emt 0:00:28]} 32. g4 {[%emt 0:00:06]} h6 {[%emt 0:00:36]} 33. Kf2 {[%emt 0:00:04]} Qe7 {[%emt 0:01:18]} 34. Qxe7+ {[%emt 0:00:35]} Kxe7 {[%emt 0:00:02]} 35. Ke3 {[%emt 0:00:02]} g5 {[%emt 0:00:16]} 36. h3 {[%emt 0:01:51]} h5 {[%emt 0:00:02]} 37. Bd3 {[%emt 0:00:07]} hxg4 {[%emt 0:00:10]} 38. hxg4 {[%emt 0:00:06]} Be6 {[%emt 0:00:04]} 39. b3 {[%emt 0:00:43]} Nd7 {[%emt 0:00:02]} 40. Nc2 {[%emt 0:00:11]} Ne5 {[%emt 0:00:04]} 41. Be2 {[%emt 0:00:01]} Ng6 {[%emt 0:00:10]} 42. Bd3 {[%emt 0:00:28]} Nf4 {[%emt 0:00:05]} 43. Bh7 {[%emt 0:00:02]} Kf6 {[%emt 0:00:04]} 44. Nd4 {[%emt 0:00:05]} Ke5 {[%emt 0:00:04]} 45. Bc2 {[%emt 0:00:14]} Bd7 {[%emt 0:00:14]} 46. Bb1 {[%emt 0:00:15]} Ng2+ {[%emt 0:00:07]} 47. Kf2 {[%emt 0:00:02]} Nh4 {[%emt 0:00:09]} 48. Kg3 {[%emt 0:00:02]} f5 {[%emt 0:00:14]} 49. f4+ {[%emt 0:00:11]} Kf6 {[%emt 0:00:01]} 50. fxg5+ {[%emt 0:00:10]} Kxg5 {[%emt 0:00:01]} 51. gxf5 {[%emt 0:00:05]} Bxf5 {[%emt 0:00:07]} 52. Nxf5 {[%emt 0:00:02]} Nxf5+ {[%emt 0:00:01]} 53. Kf3 {[%emt 0:00:00]} d4 {[%emt 0:00:19]} 54. cxd4 {[%emt 0:00:14]} Nxd4+ {[%emt 0:00:01]} 55. Ke4 {[%emt 0:00:00]} Nb5 {[%emt 0:00:03]} 56. Kd3 {[%emt 0:00:05]} Kf4 {[%emt 0:00:02]} 57. a4 {[%emt 0:00:03]} Nc7 {[%emt 0:00:11]} 58. Kd4 {[%emt 0:00:04]} b6 {[%emt 0:00:02]} 59. Bc2 {[%emt 0:00:06]} Kf3 {[%emt 0:00:02]} 60. Bd3 {[%emt 0:00:07]} Kf2 {[%emt 0:00:02]} 61. Kc4 {[%emt 0:00:07]} Ke3 {[%emt 0:00:01]} 62. Bf1 {[%emt 0:00:07]} d5+ {[%emt 0:00:03]} 63. Kc3 {[%emt 0:00:01]} Ne6 {[%emt 0:00:03]} 64. b4 {[%emt 0:00:02]} Nd4 {[%emt 0:00:49]} 65. Ba6 {[%emt 0:00:20]} Nf5 {[%emt 0:00:23]} 0-1